[Event "Early-Titled-Tuesday-Blitz-July-09-2024"]
[Site "Chess.com"]
[Date "2024.07.09"]
[Round "3"]
[White "Nekoo04"]
[Black "marvinguevara"]
[Result "1-0"]
[WhiteElo "2385"]
[BlackElo "2041"]
[TimeControl "180+1"]
[EndTime "8:30:26 PDT"]
[Termination "Nekoo04 won on time"]

1. Nf3 {[%clk 0:03:00.9]} 1... d5 {[%clk 0:02:57.8]} 2. g3 {[%clk 0:03:01.7]}
2... d4 {[%clk 0:02:57.2]} 3. Bg2 {[%clk 0:03:00.9]} 3... c5 {[%clk 0:02:56.3]}
4. O-O {[%clk 0:02:59.8]} 4... Nf6 {[%clk 0:02:55.6]} 5. e3 {[%clk 0:02:59.8]}
5... Nc6 {[%clk 0:02:55.2]} 6. exd4 {[%clk 0:02:59.5]} 6... cxd4 {[%clk
0:02:56.1]} 7. c4 {[%clk 0:02:58.7]} 7... e6 {[%clk 0:02:52.6]} 8. d3 {[%clk
0:02:58.4]} 8... Be7 {[%clk 0:02:44.6]} 9. Na3 {[%clk 0:02:54.3]} 9... O-O
{[%clk 0:02:37.8]} 10. Nc2 {[%clk 0:02:54.1]} 10... a5 {[%clk 0:02:36.3]} 11.
Rb1 {[%clk 0:02:53.4]} 11... Bc5 {[%clk 0:02:32]} 12. a3 {[%clk 0:02:53]} 12...
a4 {[%clk 0:02:28.9]} 13. Re1 {[%clk 0:02:52]} 13... Ra7 {[%clk 0:02:06.7]} 14.
b4 {[%clk 0:02:48.8]} 14... axb3 {[%clk 0:02:05.5]} 15. Rxb3 {[%clk 0:02:49.4]}
15... b6 {[%clk 0:02:01.7]} 16. Nb4 {[%clk 0:02:25.9]} 16... Bb7 {[%clk
0:01:56.6]} 17. Bd2 {[%clk 0:02:18.7]} 17... Ne7 {[%clk 0:01:51.2]} 18. Bg5
{[%clk 0:02:14.4]} 18... Ng6 {[%clk 0:01:45.8]} 19. h4 {[%clk 0:01:55.1]} 19...
h6 {[%clk 0:01:32.8]} 20. Bxf6 {[%clk 0:01:29.8]} 20... Qxf6 {[%clk 0:01:30.4]}
21. h5 {[%clk 0:01:30]} 21... Ne7 {[%clk 0:01:27.3]} 22. Ne5 {[%clk 0:01:29.5]}
22... Rd8 {[%clk 0:01:15.4]} 23. Qc1 {[%clk 0:01:07.2]} 23... Bxg2 {[%clk
0:01:12.4]} 24. Kxg2 {[%clk 0:01:08.1]} 24... Qg5 {[%clk 0:01:03.1]} 25. Qxg5
{[%clk 0:01:04.7]} 25... hxg5 {[%clk 0:01:04]} 26. Nec6 {[%clk 0:01:03.7]} 26...
Bxb4 {[%clk 0:00:57.7]} 27. Nxb4 {[%clk 0:00:50.8]} 27... Rda8 {[%clk
0:00:52.2]} 28. Nc2 {[%clk 0:00:47.7]} 28... Ra6 {[%clk 0:00:38.6]} 29. Reb1
{[%clk 0:00:46.2]} 29... Nc6 {[%clk 0:00:25.8]} 30. Rxb6 {[%clk 0:00:44.4]}
30... Ne5 {[%clk 0:00:25.4]} 31. Nxd4 {[%clk 0:00:38.2]} 31... Nxd3 {[%clk
0:00:22.6]} 32. Rxa6 {[%clk 0:00:22.6]} 32... Rxa6 {[%clk 0:00:21.8]} 33. Rb8+
{[%clk 0:00:19.7]} 33... Kh7 {[%clk 0:00:21.8]} 34. Rb3 {[%clk 0:00:20.4]} 34...
Nc5 {[%clk 0:00:21.1]} 35. Rf3 {[%clk 0:00:19.8]} 35... Kg8 {[%clk 0:00:20.4]}
36. Nb5 {[%clk 0:00:19.1]} 36... Ra4 {[%clk 0:00:19.3]} 37. Rc3 {[%clk
0:00:18.3]} 37... Ne4 {[%clk 0:00:18.4]} 38. Rc1 {[%clk 0:00:17.8]} 38... Nc5
{[%clk 0:00:18.3]} 39. Kf3 {[%clk 0:00:16.9]} 39... Nd3 {[%clk 0:00:17.8]} 40.
Rc3 {[%clk 0:00:16.1]} 40... Ne5+ {[%clk 0:00:16.1]} 41. Ke4 {[%clk 0:00:15.2]}
41... Nxc4 {[%clk 0:00:16.5]} 42. Kf3 {[%clk 0:00:10.6]} 42... Nd2+ {[%clk
0:00:11.6]} 43. Kg2 {[%clk 0:00:10.1]} 43... Nc4 {[%clk 0:00:09.5]} 44. Nd4
{[%clk 0:00:09]} 44... Nxa3 {[%clk 0:00:06.6]} 45. Rc8+ {[%clk 0:00:08.1]} 45...
Kh7 {[%clk 0:00:06.1]} 46. Nf3 {[%clk 0:00:08.8]} 46... Ra5 {[%clk 0:00:05.1]}
47. Rc7 {[%clk 0:00:08.3]} 47... Kg8 {[%clk 0:00:03.3]} 48. Nd4 {[%clk
0:00:08.7]} 48... Kh7 {[%clk 0:00:04.2]} 49. Rxf7 {[%clk 0:00:07.5]} 49... Nc4
{[%clk 0:00:03.1]} 50. Nxe6 {[%clk 0:00:07.1]} 50... Ne5 {[%clk 0:00:02.9]} 51.
Rxg7+ {[%clk 0:00:07]} 51... Kh6 {[%clk 0:00:03.5]} 52. Rxg5 {[%clk 0:00:06.8]}
1-0

[Event "Early-Titled-Tuesday-Blitz-July-09-2024"]
[Site "Chess.com"]
[Date "2024.07.09"]
[Round "3"]
[White "kuzol"]
[Black "Losingexperience"]
[Result "1-0"]
[WhiteElo "2507"]
[BlackElo "2719"]
[TimeControl "180+1"]
[EndTime "8:30:27 PDT"]
[Termination "kuzol won on time"]

1. d4 {[%clk 0:03:00.9]} 1... Nf6 {[%clk 0:02:59.5]} 2. Nc3 {[%clk 0:03:00.7]}
2... d5 {[%clk 0:02:58.6]} 3. Bf4 {[%clk 0:03:00.8]} 3... g6 {[%clk 0:02:57.7]}
4. Nb5 {[%clk 0:02:57.8]} 4... Na6 {[%clk 0:02:57.1]} 5. e3 {[%clk 0:02:58]}
5... Bg7 {[%clk 0:02:56.3]} 6. h4 {[%clk 0:02:57.6]} 6... h5 {[%clk 0:02:55.5]}
7. Be2 {[%clk 0:02:51.3]} 7... O-O {[%clk 0:02:51.7]} 8. Nf3 {[%clk 0:02:51.4]}
8... c6 {[%clk 0:02:50.5]} 9. Nc3 {[%clk 0:02:51]} 9... Nc7 {[%clk 0:02:50.9]}
10. O-O {[%clk 0:02:48.5]} 10... Nce8 {[%clk 0:02:51.5]} 11. Be5 {[%clk
0:02:46.2]} 11... Nd6 {[%clk 0:02:51.2]} 12. b3 {[%clk 0:02:41.1]} 12... b6
{[%clk 0:02:49.4]} 13. a4 {[%clk 0:02:38.7]} 13... a5 {[%clk 0:02:48.7]} 14. Ng5
{[%clk 0:02:32.3]} 14... Ng4 {[%clk 0:02:44.9]} 15. Bxg7 {[%clk 0:02:30.2]}
15... Kxg7 {[%clk 0:02:44]} 16. Qd2 {[%clk 0:02:11.5]} 16... f6 {[%clk
0:02:34.5]} 17. Nh3 {[%clk 0:02:00.5]} 17... e5 {[%clk 0:02:33.1]} 18. f3 {[%clk
0:01:43.3]} 18... Nh6 {[%clk 0:02:30]} 19. Nf2 {[%clk 0:01:42.2]} 19... Nhf5
{[%clk 0:02:27.3]} 20. dxe5 {[%clk 0:01:27.4]} 20... fxe5 {[%clk 0:02:26.4]} 21.
e4 {[%clk 0:01:27.9]} 21... Ng3 {[%clk 0:02:06]} 22. exd5 {[%clk 0:01:27.2]}
22... Nxf1 {[%clk 0:01:32.1]} 23. Bxf1 {[%clk 0:01:22.8]} 23... c5 {[%clk
0:01:32]} 24. Re1 {[%clk 0:01:19.7]} 24... Qxh4 {[%clk 0:01:30]} 25. Rxe5 {[%clk
0:01:17.8]} 25... Bf5 {[%clk 0:01:29.5]} 26. Nb5 {[%clk 0:01:08.8]} 26... Nf7
{[%clk 0:01:15.4]} 27. Re1 {[%clk 0:01:01.2]} 27... Rad8 {[%clk 0:01:14.7]} 28.
c4 {[%clk 0:00:56.6]} 28... Rfe8 {[%clk 0:01:11.1]} 29. Nc7 {[%clk 0:00:31.2]}
29... Rxe1 {[%clk 0:00:58.9]} 30. Qxe1 {[%clk 0:00:32.1]} 30... Qg3 {[%clk
0:00:52.9]} 31. Qe7 {[%clk 0:00:29.5]} 31... Kg8 {[%clk 0:00:25]} 32. Ne6 {[%clk
0:00:28.4]} 32... Qe5 {[%clk 0:00:06.5]} 33. f4 {[%clk 0:00:20.7]} 33... Qd6
{[%clk 0:00:05.5]} 34. Qf6 {[%clk 0:00:21.1]} 34... Bxe6 {[%clk 0:00:04.4]} 35.
dxe6 {[%clk 0:00:21.1]} 35... Nh8 {[%clk 0:00:04.4]} 36. Kh1 {[%clk 0:00:13.4]}
36... Re8 {[%clk 0:00:04.6]} 37. f5 {[%clk 0:00:12.8]} 37... gxf5 {[%clk
0:00:04.4]} 38. Qg5+ {[%clk 0:00:13.4]} 38... Kf8 {[%clk 0:00:03.9]} 39. Qxh5
{[%clk 0:00:13.6]} 39... Qxe6 {[%clk 0:00:03.3]} 40. Qxh8+ {[%clk 0:00:13.4]}
40... Kf7 {[%clk 0:00:03.3]} 41. Qh5+ {[%clk 0:00:13.7]} 41... Ke7 {[%clk
0:00:03.6]} 42. Qf3 {[%clk 0:00:14]} 42... Rh8+ {[%clk 0:00:03.3]} 43. Kg1
{[%clk 0:00:14.7]} 43... Rd8 {[%clk 0:00:02.3]} 44. Qb7+ {[%clk 0:00:15.2]}
44... Rd7 {[%clk 0:00:02.5]} 45. Qf3 {[%clk 0:00:15.9]} 45... Qe5 {[%clk
0:00:02.7]} 46. g3 {[%clk 0:00:16.3]} 46... Qd4 {[%clk 0:00:03]} 47. Bh3 {[%clk
0:00:16.4]} 47... Qa1+ {[%clk 0:00:01.7]} 48. Kg2 {[%clk 0:00:16.8]} 48... Qe5
{[%clk 0:00:02.6]} 49. Bxf5 {[%clk 0:00:16.8]} 49... Rd4 {[%clk 0:00:02.2]} 50.
g4 {[%clk 0:00:16.7]} 50... Rd2 {[%clk 0:00:02.1]} 51. Qb7+ {[%clk 0:00:17.3]}
51... Kf6 {[%clk 0:00:01.9]} 52. Qh7 {[%clk 0:00:16.3]} 52... Kg5 {[%clk
0:00:02.8]} 53. Qh5+ {[%clk 0:00:16.4]} 53... Kf4 {[%clk 0:00:03.1]} 54. Qh2+
{[%clk 0:00:16.9]} 54... Kg5 {[%clk 0:00:02.5]} 55. Qxe5 {[%clk 0:00:17.8]} 1-0

[Event "Early-Titled-Tuesday-Blitz-July-09-2024"]
[Site "Chess.com"]
[Date "2024.07.09"]
[Round "3"]
[White "AndresDelgado77"]
[Black "VacheH009"]
[Result "0-1"]
[WhiteElo "2336"]
[BlackElo "2526"]
[TimeControl "180+1"]
[EndTime "8:30:27 PDT"]
[Termination "VacheH009 won on time"]

1. e4 {[%clk 0:03:00.5]} 1... e5 {[%clk 0:02:55.4]} 2. Nc3 {[%clk 0:02:59.9]}
2... Nc6 {[%clk 0:02:38]} 3. Bc4 {[%clk 0:02:56]} 3... d6 {[%clk 0:02:38.9]} 4.
d3 {[%clk 0:02:45.7]} 4... Be6 {[%clk 0:02:22.3]} 5. Nge2 {[%clk 0:02:40.2]}
5... Bxc4 {[%clk 0:01:08.3]} 6. dxc4 {[%clk 0:02:25.7]} 6... Nge7 {[%clk
0:01:09.2]} 7. Be3 {[%clk 0:02:22.8]} 7... g6 {[%clk 0:01:06]} 8. Qd2 {[%clk
0:02:21.4]} 8... Bg7 {[%clk 0:01:06.9]} 9. O-O-O {[%clk 0:02:17.7]} 9... Qd7
{[%clk 0:01:03.3]} 10. Nd5 {[%clk 0:02:13.9]} 10... O-O-O {[%clk 0:00:56.8]} 11.
Bg5 {[%clk 0:02:12.6]} 11... h6 {[%clk 0:00:44]} 12. Be3 {[%clk 0:01:54]} 12...
f5 {[%clk 0:00:43.1]} 13. Nxe7+ {[%clk 0:01:49]} 13... Qxe7 {[%clk 0:00:42.1]}
14. exf5 {[%clk 0:01:46.6]} 14... gxf5 {[%clk 0:00:39.6]} 15. f3 {[%clk
0:01:41.3]} 15... Qf6 {[%clk 0:00:33.8]} 16. Nc3 {[%clk 0:01:37.8]} 16... Rhe8
{[%clk 0:00:32.1]} 17. Nd5 {[%clk 0:01:33.5]} 17... Qg6 {[%clk 0:00:31.8]} 18.
Kb1 {[%clk 0:01:29.2]} 18... Kb8 {[%clk 0:00:31.9]} 19. b4 {[%clk 0:01:27.6]}
19... Ne7 {[%clk 0:00:31.5]} 20. Bxa7+ {[%clk 0:01:17.5]} 20... Kxa7 {[%clk
0:00:29.1]} 21. Nxc7 {[%clk 0:01:17.8]} 21... Rf8 {[%clk 0:00:24.9]} 22. Nb5+
{[%clk 0:01:15.2]} 22... Kb8 {[%clk 0:00:24.9]} 23. Nxd6 {[%clk 0:01:15.3]}
23... Nc8 {[%clk 0:00:24.8]} 24. c5 {[%clk 0:01:14.4]} 24... Nxd6 {[%clk
0:00:22.8]} 25. cxd6 {[%clk 0:01:14.5]} 25... Rd7 {[%clk 0:00:20.4]} 26. c4
{[%clk 0:01:12.9]} 26... Qf6 {[%clk 0:00:20.3]} 27. Qc3 {[%clk 0:01:09.8]} 27...
Rxd6 {[%clk 0:00:19.5]} 28. c5 {[%clk 0:01:08.7]} 28... Rxd1+ {[%clk 0:00:18.9]}
29. Rxd1 {[%clk 0:01:09]} 29... Rd8 {[%clk 0:00:19.5]} 30. Rxd8+ {[%clk
0:01:04]} 30... Qxd8 {[%clk 0:00:20.4]} 31. f4 {[%clk 0:01:04.5]} 31... Qd1+
{[%clk 0:00:19.2]} 32. Kb2 {[%clk 0:01:03.7]} 32... Qe2+ {[%clk 0:00:18.9]} 33.
Kb3 {[%clk 0:01:03.9]} 33... Qxg2 {[%clk 0:00:18.9]} 34. fxe5 {[%clk 0:01:03.3]}
34... Qd5+ {[%clk 0:00:18.1]} 35. Qc4 {[%clk 0:01:02.5]} 35... Qxe5 {[%clk
0:00:18.3]} 36. Qg8+ {[%clk 0:00:59.9]} 36... Ka7 {[%clk 0:00:18]} 37. Qf7
{[%clk 0:00:59.5]} 37... Qb2+ {[%clk 0:00:16.9]} 38. Ka4 {[%clk 0:00:59.7]}
38... Bc3 {[%clk 0:00:17.2]} 39. Qb3 {[%clk 0:00:57.5]} 39... Qxb3+ {[%clk
0:00:17.1]} 40. Kxb3 {[%clk 0:00:57.2]} 40... Be5 {[%clk 0:00:15.4]} 41. Kc4
{[%clk 0:00:57.3]} 41... Bxh2 {[%clk 0:00:15.1]} 42. Kd5 {[%clk 0:00:55.3]}
42... Bc7 {[%clk 0:00:15.5]} 43. b5 {[%clk 0:00:55]} 43... h5 {[%clk 0:00:15.8]}
44. b6+ {[%clk 0:00:49.4]} 44... Bxb6 {[%clk 0:00:15.3]} 45. cxb6+ {[%clk
0:00:50.3]} 45... Kxb6 {[%clk 0:00:16.2]} 46. Ke5 {[%clk 0:00:51]} 46... h4
{[%clk 0:00:16.8]} 47. Kf4 {[%clk 0:00:51.6]} 47... Kb5 {[%clk 0:00:16.8]} 48.
Kf3 {[%clk 0:00:51.8]} 48... Ka4 {[%clk 0:00:17.2]} 49. Kg2 {[%clk 0:00:52.7]}
49... f4 {[%clk 0:00:17.8]} 50. Kf3 {[%clk 0:00:52.6]} 50... h3 {[%clk
0:00:17.9]} 0-1

[Event "Early-Titled-Tuesday-Blitz-July-09-2024"]
[Site "Chess.com"]
[Date "2024.07.09"]
[Round "3"]
[White "PositionalPanther"]
[Black "JaloliddinIlkhomi"]
[Result "1-0"]
[WhiteElo "2492"]
[BlackElo "2710"]
[TimeControl "180+1"]
[EndTime "8:30:31 PDT"]
[Termination "PositionalPanther won by resignation"]

1. e4 {[%clk 0:03:00.9]} 1... e6 {[%clk 0:03:00.3]} 2. d4 {[%clk 0:03:00.4]}
2... d5 {[%clk 0:03:00.4]} 3. exd5 {[%clk 0:03:01.3]} 3... exd5 {[%clk
0:03:01.3]} 4. Nc3 {[%clk 0:03:00.4]} 4... c6 {[%clk 0:03:00.9]} 5. Bf4 {[%clk
0:02:55.8]} 5... Bd6 {[%clk 0:03:01.3]} 6. Qd2 {[%clk 0:02:55.2]} 6... Ne7
{[%clk 0:03:01.5]} 7. Bd3 {[%clk 0:02:54.4]} 7... Bf5 {[%clk 0:03:01.3]} 8. Nge2
{[%clk 0:02:48.7]} 8... O-O {[%clk 0:03:01.3]} 9. O-O-O {[%clk 0:02:43.2]} 9...
Bxf4 {[%clk 0:03:01.4]} 10. Qxf4 {[%clk 0:02:39.3]} 10... Bxd3 {[%clk 0:03:01]}
11. Rxd3 {[%clk 0:02:40.2]} 11... Nd7 {[%clk 0:03:00.1]} 12. h4 {[%clk
0:02:36.6]} 12... Ng6 {[%clk 0:02:58.7]} 13. Qd2 {[%clk 0:02:30.9]} 13... Nb6
{[%clk 0:02:38.6]} 14. b3 {[%clk 0:02:10.6]} 14... h5 {[%clk 0:01:44.5]} 15. Ng3
{[%clk 0:02:02.1]} 15... Qd7 {[%clk 0:01:30.2]} 16. f3 {[%clk 0:01:33.9]} 16...
Rae8 {[%clk 0:01:16.8]} 17. Nxh5 {[%clk 0:01:32.6]} 17... Qe7 {[%clk 0:01:16.6]}
18. g3 {[%clk 0:01:18.3]} 18... Nc4 {[%clk 0:01:15.8]} 19. bxc4 {[%clk
0:00:59.7]} 19... dxc4 {[%clk 0:01:16.7]} 20. Ne4 {[%clk 0:00:51.7]} 20... cxd3
{[%clk 0:01:17]} 21. Qxd3 {[%clk 0:00:52.6]} 21... f5 {[%clk 0:01:12.8]} 22. Ng5
{[%clk 0:00:45.4]} 22... Qe3+ {[%clk 0:01:13.2]} 23. Qxe3 {[%clk 0:00:39]} 23...
Rxe3 {[%clk 0:01:14.1]} 24. Nf4 {[%clk 0:00:26.6]} 24... Nxf4 {[%clk 0:01:13.4]}
25. gxf4 {[%clk 0:00:27.5]} 25... Rfe8 {[%clk 0:01:13.7]} 26. Kb2 {[%clk
0:00:24.9]} 26... Re2 {[%clk 0:01:11.6]} 27. h5 {[%clk 0:00:24.3]} 27... Rd2
{[%clk 0:00:48.3]} 28. h6 {[%clk 0:00:24.8]} 28... gxh6 {[%clk 0:00:47.9]} 29.
Rxh6 {[%clk 0:00:25.7]} 29... Ree2 {[%clk 0:00:47.6]} 30. Rg6+ {[%clk
0:00:25.6]} 30... Kf8 {[%clk 0:00:47.7]} 31. Rf6+ {[%clk 0:00:15.6]} 31... Ke7
{[%clk 0:00:48]} 32. Rxf5 {[%clk 0:00:13.1]} 32... Rxc2+ {[%clk 0:00:47.9]} 33.
Kb3 {[%clk 0:00:13.4]} 33... Rb2+ {[%clk 0:00:47.6]} 34. Kc3 {[%clk 0:00:14]}
34... Rxa2 {[%clk 0:00:48.2]} 35. Re5+ {[%clk 0:00:10.7]} 35... Kd7 {[%clk
0:00:44.1]} 36. Kd3 {[%clk 0:00:11.2]} 36... Red2+ {[%clk 0:00:42.5]} 37. Ke4
{[%clk 0:00:11]} 37... Ra4 {[%clk 0:00:42.9]} 38. Ne6 {[%clk 0:00:10.1]} 38...
Kd6 {[%clk 0:00:34.8]} 39. Kf5 {[%clk 0:00:08.2]} 39... Rd3 {[%clk 0:00:29.5]}
40. Nc5 {[%clk 0:00:05.7]} 40... Raxd4 {[%clk 0:00:28.6]} 41. Nxb7+ {[%clk
0:00:05.2]} 41... Kc7 {[%clk 0:00:27.6]} 42. Nc5 {[%clk 0:00:05.7]} 42... Rd1
{[%clk 0:00:17.4]} 43. Ne6+ {[%clk 0:00:06.2]} 43... Kd6 {[%clk 0:00:18]} 44.
Nxd4 {[%clk 0:00:07]} 44... Rxd4 {[%clk 0:00:18.7]} 45. Re8 {[%clk 0:00:05.4]}
45... a5 {[%clk 0:00:18.5]} 46. Ra8 {[%clk 0:00:05.3]} 46... Ra4 {[%clk
0:00:18.8]} 47. Kg5 {[%clk 0:00:05.3]} 47... Ra1 {[%clk 0:00:19.4]} 48. f5
{[%clk 0:00:05.6]} 48... a4 {[%clk 0:00:19.9]} 49. f6 {[%clk 0:00:06]} 49... Ke6
{[%clk 0:00:18.2]} 50. Re8+ {[%clk 0:00:04.7]} 50... Kf7 {[%clk 0:00:17.9]} 51.
Re7+ {[%clk 0:00:05.1]} 51... Kf8 {[%clk 0:00:18.6]} 52. Kf5 {[%clk 0:00:04.2]}
52... a3 {[%clk 0:00:18.8]} 53. Ra7 {[%clk 0:00:04.9]} 53... a2 {[%clk
0:00:17.1]} 54. Ra8+ {[%clk 0:00:05.2]} 54... Kf7 {[%clk 0:00:17.1]} 55. Ra7+
{[%clk 0:00:06.1]} 55... Ke8 {[%clk 0:00:17.7]} 56. f4 {[%clk 0:00:07]} 56...
Kf8 {[%clk 0:00:15.7]} 57. Ra8+ {[%clk 0:00:07.5]} 57... Kf7 {[%clk 0:00:15.9]}
58. Ra7+ {[%clk 0:00:08.4]} 58... Ke8 {[%clk 0:00:16.3]} 59. f7+ {[%clk
0:00:08.7]} 59... Kf8 {[%clk 0:00:16.9]} 60. Kf6 {[%clk 0:00:09.1]} 1-0

[Event "Early-Titled-Tuesday-Blitz-July-09-2024"]
[Site "Chess.com"]
[Date "2024.07.09"]
[Round "3"]
[White "shimastream"]
[Black "Brown_Bear_MGL"]
[Result "0-1"]
[WhiteElo "2897"]
[BlackElo "2633"]
[TimeControl "180+1"]
[EndTime "8:30:32 PDT"]
[Termination "Brown_Bear_MGL won by checkmate"]

1. e4 {[%clk 0:03:00.9]} 1... c6 {[%clk 0:02:59.9]} 2. d4 {[%clk 0:02:54.7]}
2... d5 {[%clk 0:03:00.8]} 3. e5 {[%clk 0:02:48.2]} 3... Bf5 {[%clk 0:02:59.7]}
4. h4 {[%clk 0:02:48.6]} 4... h5 {[%clk 0:02:59.5]} 5. Bd3 {[%clk 0:02:36.9]}
5... Bxd3 {[%clk 0:02:58.9]} 6. Qxd3 {[%clk 0:02:37.8]} 6... Qa5+ {[%clk
0:02:58.8]} 7. b4 {[%clk 0:02:36.4]} 7... Qb5 {[%clk 0:02:54.1]} 8. Nd2 {[%clk
0:02:31.7]} 8... e6 {[%clk 0:02:52]} 9. Rb1 {[%clk 0:02:09.9]} 9... Nh6 {[%clk
0:02:44.8]} 10. Ne2 {[%clk 0:02:05.3]} 10... Nf5 {[%clk 0:02:41.4]} 11. a4
{[%clk 0:01:39.1]} 11... Qxa4 {[%clk 0:02:22.3]} 12. Nc3 {[%clk 0:01:38]} 12...
Qa6 {[%clk 0:02:20.4]} 13. b5 {[%clk 0:01:38.3]} 13... Qb6 {[%clk 0:02:01.3]}
14. Nf3 {[%clk 0:01:37.2]} 14... c5 {[%clk 0:01:56]} 15. O-O {[%clk 0:01:31.5]}
15... Nxd4 {[%clk 0:01:49.4]} 16. Nxd4 {[%clk 0:01:29.7]} 16... cxd4 {[%clk
0:01:49.2]} 17. Na4 {[%clk 0:01:24.8]} 17... Qc7 {[%clk 0:01:46.3]} 18. b6
{[%clk 0:01:11.6]} 18... axb6 {[%clk 0:01:43.2]} 19. Nxb6 {[%clk 0:01:12.5]}
19... Ra6 {[%clk 0:01:38.8]} 20. Qb5+ {[%clk 0:00:47.8]} 20... Nc6 {[%clk
0:01:36.1]} 21. Bg5 {[%clk 0:00:31.9]} 21... Ba3 {[%clk 0:01:11.8]} 22. Rb3
{[%clk 0:00:23.2]} 22... O-O {[%clk 0:00:48.1]} 23. f4 {[%clk 0:00:19.2]} 23...
Ra5 {[%clk 0:00:41.6]} 24. Qe2 {[%clk 0:00:18.9]} 24... d3 {[%clk 0:00:39.5]}
25. Qxh5 {[%clk 0:00:14.7]} 25... Bc5+ {[%clk 0:00:39.4]} 26. Kh1 {[%clk
0:00:15]} 26... f6 {[%clk 0:00:10.8]} 27. exf6 {[%clk 0:00:13.2]} 27... Qf7
{[%clk 0:00:11.1]} 28. Qg4 {[%clk 0:00:09.4]} 28... Bxb6 {[%clk 0:00:09.7]} 29.
Rxd3 {[%clk 0:00:04.1]} 29... Bd8 {[%clk 0:00:08.6]} 30. fxg7 {[%clk 0:00:03.7]}
30... Re8 {[%clk 0:00:08.4]} 31. Rg3 {[%clk 0:00:03.7]} 31... Ra4 {[%clk
0:00:07.4]} 32. Rff3 {[%clk 0:00:02.8]} 32... Ne5 {[%clk 0:00:07.5]} 33. fxe5
{[%clk 0:00:02.5]} 33... Rxg4 {[%clk 0:00:07.1]} 34. Rxg4 {[%clk 0:00:02.5]}
34... Qg6 {[%clk 0:00:05.1]} 35. Rfg3 {[%clk 0:00:01.6]} 35... Qxc2 {[%clk
0:00:05]} 36. Kh2 {[%clk 0:00:01.8]} 36... Qb1 {[%clk 0:00:05.2]} 37. h5 {[%clk
0:00:02]} 37... Qh7 {[%clk 0:00:05.7]} 38. Rh4 {[%clk 0:00:01.7]} 38... Bxg5
{[%clk 0:00:05.8]} 39. Rxg5 {[%clk 0:00:02.6]} 39... Qh6 {[%clk 0:00:06.3]} 40.
Rg6 {[%clk 0:00:02.8]} 40... Qe3 {[%clk 0:00:06]} 41. h6 {[%clk 0:00:02.5]}
41... Kh7 {[%clk 0:00:06.4]} 42. Rg3 {[%clk 0:00:02]} 42... Qxe5 {[%clk
0:00:06.1]} 43. Kh3 {[%clk 0:00:02.1]} 43... Rg8 {[%clk 0:00:06.1]} 44. Rgg4
{[%clk 0:00:02.5]} 44... Qf5 {[%clk 0:00:06.4]} 45. g3 {[%clk 0:00:03]} 45... e5
{[%clk 0:00:06.8]} 46. Kh2 {[%clk 0:00:03.3]} 46... e4 {[%clk 0:00:07.2]} 47.
Rf4 {[%clk 0:00:04]} 47... Qe6 {[%clk 0:00:07.5]} 48. Rf8 {[%clk 0:00:04.4]}
48... e3 {[%clk 0:00:07.8]} 49. Rhf4 {[%clk 0:00:04.9]} 49... e2 {[%clk
0:00:07.5]} 50. Rxg8 {[%clk 0:00:05.3]} 50... Qxg8 {[%clk 0:00:07.7]} 51. Rf6
{[%clk 0:00:03.5]} 51... Qe8 {[%clk 0:00:06.9]} 52. g4 {[%clk 0:00:04.4]} 52...
e1=Q {[%clk 0:00:06.5]} 53. Rf8 {[%clk 0:00:01.4]} 53... Qh4+ {[%clk 0:00:06.5]}
54. Kg2 {[%clk 0:00:01.8]} 54... Qe2+ {[%clk 0:00:06.8]} 55. Kg1 {[%clk
0:00:02]} 55... Qg3+ {[%clk 0:00:06.8]} 56. Kh1 {[%clk 0:00:02.4]} 56... Qgg2#
{[%clk 0:00:07.1]} 0-1